[Event "*** Titled Tuesday Blitz"]
[Site "Chess.com"]
[Date "2019.05.07"]
[Round "10"]
[White "TristanCalistri"]
[Black "Chessdude1987"]
[Result "1-0"]
[WhiteElo "2189"]
[BlackElo "2100"]
[TimeControl "180+2"]
[EndTime "15:25:11 PDT"]
[Termination "TristanCalistri won on time"]

1. e4 {[%clk 0:03:01.9]} 1... e6 {[%clk 0:02:58.6]} 2. d4 {[%clk 0:03:01.2]}
2... d5 {[%clk 0:02:59.6]} 3. Nd2 {[%clk 0:03:02.6]} 3... c5 {[%clk 0:02:57.7]}
4. exd5 {[%clk 0:03:03.1]} 4... exd5 {[%clk 0:02:58.8]} 5. Bb5+ {[%clk
0:03:03.2]} 5... Nc6 {[%clk 0:02:53]} 6. Ne2 {[%clk 0:03:03.4]} 6... Nf6 {[%clk
0:02:51.8]} 7. O-O {[%clk 0:03:03.6]} 7... Be7 {[%clk 0:02:48.7]} 8. dxc5 {[%clk
0:02:58]} 8... Bxc5 {[%clk 0:02:49.3]} 9. Nb3 {[%clk 0:02:59.6]} 9... Bb6 {[%clk
0:02:49.7]} 10. Ned4 {[%clk 0:03:01]} 10... O-O {[%clk 0:02:30.2]} 11. Nxc6
{[%clk 0:02:57.4]} 11... bxc6 {[%clk 0:02:30.3]} 12. Bxc6 {[%clk 0:02:58.8]}
12... Rb8 {[%clk 0:02:24.8]} 13. Bf4 {[%clk 0:03:00.1]} 13... Bc7 {[%clk
0:02:25.1]} 14. Bxc7 {[%clk 0:02:41.3]} 14... Qxc7 {[%clk 0:02:25.2]} 15. Bxd5
{[%clk 0:02:42.5]} 15... Nxd5 {[%clk 0:01:51.6]} 16. Qxd5 {[%clk 0:02:41.8]}
16... Qxc2 {[%clk 0:01:52.2]} 17. Qe5 {[%clk 0:02:31.7]} 17... Be6 {[%clk
0:01:46.9]} 18. Rfc1 {[%clk 0:02:30]} 18... Qd3 {[%clk 0:01:38.6]} 19. Nc5
{[%clk 0:02:30.3]} 19... Qb5 {[%clk 0:01:20]} 20. b3 {[%clk 0:02:20.6]} 20...
Rfd8 {[%clk 0:01:15.3]} 21. Qe3 {[%clk 0:02:14.4]} 21... Bf5 {[%clk 0:01:11.6]}
22. Rc3 {[%clk 0:02:12.8]} 22... Re8 {[%clk 0:01:04.7]} 23. Qf4 {[%clk
0:02:04.2]} 23... Bg6 {[%clk 0:00:58]} 24. h3 {[%clk 0:01:50]} 24... Rbc8 {[%clk
0:00:58.2]} 25. Rac1 {[%clk 0:01:46.7]} 25... Qe2 {[%clk 0:00:43]} 26. a3 {[%clk
0:01:37.1]} 26... h6 {[%clk 0:00:35.1]} 27. b4 {[%clk 0:01:36.8]} 27... Rcd8
{[%clk 0:00:33.1]} 28. a4 {[%clk 0:01:30.6]} 28... Rd2 {[%clk 0:00:32.2]} 29. b5
{[%clk 0:01:29.2]} 29... Red8 {[%clk 0:00:28.5]} 30. Qf3 {[%clk 0:01:11.8]}
30... Rd1+ {[%clk 0:00:26.4]} 31. Kh2 {[%clk 0:01:05.1]} 31... Qe1 {[%clk
0:00:23.9]} 32. Rxd1 {[%clk 0:01:05.3]} 32... Rxd1 {[%clk 0:00:23.4]} 33. a5
{[%clk 0:00:52.7]} 33... Qh1+ {[%clk 0:00:14.6]} 34. Kg3 {[%clk 0:00:51.9]}
34... h5 {[%clk 0:00:15.6]} 35. Nd3 {[%clk 0:00:36.4]} 35... h4+ {[%clk
0:00:13.9]} 36. Kxh4 {[%clk 0:00:36.8]} 36... Qf1 {[%clk 0:00:11.2]} 37. Nf4
{[%clk 0:00:35.2]} 37... Qxb5 {[%clk 0:00:07.4]} 38. Qxd1 {[%clk 0:00:33.9]}
38... f6 {[%clk 0:00:04.1]} 39. Kg3 {[%clk 0:00:32.8]} 39... Qg5+ {[%clk
0:00:04.2]} 40. Qg4 {[%clk 0:00:33.8]} 40... Qe5 {[%clk 0:00:02.5]} 41. Rc8+
{[%clk 0:00:32.3]} 1-0

[Event "*** Titled Tuesday Blitz"]
[Site "Chess.com"]
[Date "2019.05.07"]
[Round "10"]
[White "Gentlejimmy7"]
[Black "Marcus_Harvey"]
[Result "0-1"]
[WhiteElo "2479"]
[BlackElo "2648"]
[TimeControl "180+2"]
[EndTime "15:25:13 PDT"]
[Termination "Marcus_Harvey won by resignation"]

1. d4 {[%clk 0:03:01.9]} 1... Nf6 {[%clk 0:03:00]} 2. c4 {[%clk 0:02:59.3]} 2...
e6 {[%clk 0:03:01.1]} 3. Nf3 {[%clk 0:02:57.6]} 3... Bb4+ {[%clk 0:03:01.4]} 4.
Bd2 {[%clk 0:02:53.9]} 4... Qe7 {[%clk 0:03:01.4]} 5. g3 {[%clk 0:02:49.6]} 5...
O-O {[%clk 0:03:02.2]} 6. Bg2 {[%clk 0:02:49.7]} 6... Bxd2+ {[%clk 0:03:03.1]}
7. Qxd2 {[%clk 0:02:48.1]} 7... d6 {[%clk 0:03:05]} 8. O-O {[%clk 0:02:47.1]}
8... e5 {[%clk 0:03:06.5]} 9. Nc3 {[%clk 0:02:35.2]} 9... Re8 {[%clk 0:03:06.5]}
10. e3 {[%clk 0:02:26.7]} 10... Nc6 {[%clk 0:03:05.6]} 11. d5 {[%clk 0:02:20.7]}
11... Nb8 {[%clk 0:03:05.7]} 12. Qc2 {[%clk 0:02:18.7]} 12... a5 {[%clk
0:03:03]} 13. a3 {[%clk 0:02:17]} 13... Na6 {[%clk 0:03:03]} 14. Rab1 {[%clk
0:02:04.4]} 14... g6 {[%clk 0:02:53.6]} 15. b4 {[%clk 0:01:52.4]} 15... Bf5
{[%clk 0:02:53.4]} 16. e4 {[%clk 0:01:51.3]} 16... Bg4 {[%clk 0:02:55]} 17. Nd2
{[%clk 0:01:46.5]} 17... Nh5 {[%clk 0:02:55.3]} 18. Nb5 {[%clk 0:01:13.6]} 18...
Bd7 {[%clk 0:02:49.9]} 19. Rfc1 {[%clk 0:01:07.5]} 19... f5 {[%clk 0:02:45.7]}
20. Re1 {[%clk 0:01:00.6]} 20... f4 {[%clk 0:02:45]} 21. Qd3 {[%clk 0:00:57]}
21... g5 {[%clk 0:02:45]} 22. h3 {[%clk 0:00:50.4]} 22... Nf6 {[%clk 0:02:43]}
23. g4 {[%clk 0:00:49.2]} 23... h5 {[%clk 0:02:44]} 24. f3 {[%clk 0:00:49]}
24... hxg4 {[%clk 0:02:45]} 25. hxg4 {[%clk 0:00:46.6]} 25... Kg7 {[%clk
0:02:46.4]} 26. Kf2 {[%clk 0:00:48]} 26... Rh8 {[%clk 0:02:47]} 27. Rh1 {[%clk
0:00:49.6]} 27... Rxh1 {[%clk 0:02:45.2]} 28. Rxh1 {[%clk 0:00:51.5]} 28... axb4
{[%clk 0:02:45.3]} 29. axb4 {[%clk 0:00:46.7]} 29... Nxb4 {[%clk 0:02:46.4]} 30.
Qb3 {[%clk 0:00:47.2]} 30... Na6 {[%clk 0:02:47.3]} 31. Nc3 {[%clk 0:00:45]}
31... Nc5 {[%clk 0:02:47.6]} 32. Qc2 {[%clk 0:00:46.1]} 32... Qd8 {[%clk
0:02:35.3]} 33. Nb3 {[%clk 0:00:46.1]} 33... Nxb3 {[%clk 0:02:34.7]} 34. Qxb3
{[%clk 0:00:48]} 34... b6 {[%clk 0:02:35.4]} 35. Qb2 {[%clk 0:00:37.8]} 35...
Qb8 {[%clk 0:02:34.9]} 36. Ra1 {[%clk 0:00:35.7]} 36... Ra7 {[%clk 0:02:32.9]}
37. Rxa7 {[%clk 0:00:29.8]} 37... Qxa7 {[%clk 0:02:33.6]} 38. Qa2 {[%clk
0:00:30.6]} 38... Qxa2+ {[%clk 0:02:34]} 39. Nxa2 {[%clk 0:00:32.5]} 39... b5
{[%clk 0:02:31.6]} 40. Bf1 {[%clk 0:00:32.3]} 40... bxc4 {[%clk 0:02:32.4]} 41.
Bxc4 {[%clk 0:00:34.2]} 41... Kf7 {[%clk 0:02:32]} 42. Nb4 {[%clk 0:00:35.3]}
42... Ke7 {[%clk 0:02:33.3]} 43. Ke2 {[%clk 0:00:34]} 43... Nh7 {[%clk
0:02:33.6]} 44. Ba6 {[%clk 0:00:31.4]} 44... Nf8 {[%clk 0:02:33.2]} 45. Bb7
{[%clk 0:00:30.7]} 45... Ng6 {[%clk 0:02:32.7]} 46. Kf2 {[%clk 0:00:21.9]} 46...
Kd8 {[%clk 0:02:29.1]} 47. Ke2 {[%clk 0:00:20.6]} 47... Bb5+ {[%clk 0:02:26]}
48. Kf2 {[%clk 0:00:21.9]} 48... Ne7 {[%clk 0:02:27.1]} 49. Kg2 {[%clk
0:00:20.7]} 49... c6 {[%clk 0:02:23.4]} 50. Bxc6 {[%clk 0:00:17.8]} 50... Nxc6
{[%clk 0:02:24.1]} 51. dxc6 {[%clk 0:00:17.1]} 51... Kc7 {[%clk 0:02:25.1]} 52.
Nd5+ {[%clk 0:00:13.1]} 52... Kxc6 {[%clk 0:02:26.3]} 53. Nf6 {[%clk 0:00:14.1]}
53... Kc5 {[%clk 0:02:23.2]} 54. Nh7 {[%clk 0:00:13.7]} 54... Kd4 {[%clk
0:02:24.3]} 55. Nxg5 {[%clk 0:00:14.2]} 55... Ke3 {[%clk 0:02:25.4]} 56. Nf7
{[%clk 0:00:13.5]} 56... Be2 {[%clk 0:02:26.1]} 57. g5 {[%clk 0:00:14.9]} 57...
Bxf3+ {[%clk 0:02:27]} 58. Kh3 {[%clk 0:00:16.6]} 58... Bxe4 {[%clk 0:02:23.5]}
59. Nxd6 {[%clk 0:00:18.1]} 59... Bg6 {[%clk 0:02:20.4]} 60. Kg4 {[%clk
0:00:15.7]} 60... f3 {[%clk 0:02:16.5]} 61. Nc4+ {[%clk 0:00:17.2]} 61... Ke2
{[%clk 0:02:17.3]} 62. Nxe5 {[%clk 0:00:16.5]} 62... f2 {[%clk 0:02:18.3]} 63.
Nxg6 {[%clk 0:00:18.1]} 63... f1=Q {[%clk 0:02:19.7]} 64. Nh4 {[%clk 0:00:16.5]}
64... Ke3 {[%clk 0:02:16.6]} 65. g6 {[%clk 0:00:17.3]} 65... Ke4 {[%clk
0:02:17.5]} 66. Kg5 {[%clk 0:00:18.7]} 66... Ke5 {[%clk 0:02:16.4]} 67. Kh6
{[%clk 0:00:12.4]} 67... Kf6 {[%clk 0:02:14.9]} 68. g7 {[%clk 0:00:11.2]} 68...
Qf4+ {[%clk 0:02:11.9]} 69. Kh7 {[%clk 0:00:11.9]} 69... Qxh4+ {[%clk
0:02:12.1]} 70. Kg8 {[%clk 0:00:13.5]} 70... Kg6 {[%clk 0:02:12.7]} 0-1

[Event "*** Titled Tuesday Blitz"]
[Site "Chess.com"]
[Date "2019.05.07"]
[Round "10"]
[White "Fins0905"]
[Black "TargetA"]
[Result "1-0"]
[WhiteElo "2667"]
[BlackElo "2453"]
[TimeControl "180+2"]
[EndTime "15:25:14 PDT"]
[Termination "Fins0905 won by resignation"]

1. d4 {[%clk 0:03:01.9]} 1... Nf6 {[%clk 0:03:00.3]} 2. Nf3 {[%clk 0:03:01.1]}
2... g6 {[%clk 0:03:01.3]} 3. Bg5 {[%clk 0:03:02]} 3... Bg7 {[%clk 0:03:00.9]}
4. Nbd2 {[%clk 0:03:03.2]} 4... d5 {[%clk 0:03:01.4]} 5. e3 {[%clk 0:03:04]}
5... O-O {[%clk 0:03:02.4]} 6. Be2 {[%clk 0:03:03.2]} 6... c5 {[%clk 0:03:03.8]}
7. c3 {[%clk 0:03:04.1]} 7... Nc6 {[%clk 0:03:05.3]} 8. dxc5 {[%clk 0:02:56.8]}
8... e5 {[%clk 0:02:26.9]} 9. O-O {[%clk 0:02:52.7]} 9... h6 {[%clk 0:02:21.2]}
10. Bxf6 {[%clk 0:02:44.4]} 10... Qxf6 {[%clk 0:02:23.1]} 11. e4 {[%clk
0:02:43.1]} 11... d4 {[%clk 0:02:17.6]} 12. cxd4 {[%clk 0:02:41.5]} 12... exd4
{[%clk 0:02:19.1]} 13. Bd3 {[%clk 0:02:20.5]} 13... Rd8 {[%clk 0:02:08.5]} 14.
a3 {[%clk 0:02:17.7]} 14... a5 {[%clk 0:02:08.7]} 15. Rc1 {[%clk 0:02:06.5]}
15... Be6 {[%clk 0:02:08.5]} 16. Qa4 {[%clk 0:01:57.5]} 16... Rac8 {[%clk
0:01:59.1]} 17. Nc4 {[%clk 0:01:43.1]} 17... Bxc4 {[%clk 0:01:47]} 18. Bxc4
{[%clk 0:01:41.7]} 18... Qf4 {[%clk 0:01:36.3]} 19. Bd3 {[%clk 0:01:27.8]} 19...
g5 {[%clk 0:01:22.4]} 20. Qd1 {[%clk 0:01:13.1]} 20... Be5 {[%clk 0:01:05.1]}
21. g3 {[%clk 0:01:07.7]} 21... Qf6 {[%clk 0:00:59]} 22. Kg2 {[%clk 0:01:03.7]}
22... Bb8 {[%clk 0:00:49.2]} 23. Rc4 {[%clk 0:00:39.6]} 23... g4 {[%clk
0:00:39.7]} 24. Nh4 {[%clk 0:00:40.4]} 24... Ne5 {[%clk 0:00:40.8]} 25. Rc2
{[%clk 0:00:39]} 25... Ba7 {[%clk 0:00:34.5]} 26. b4 {[%clk 0:00:38.5]} 26...
axb4 {[%clk 0:00:30]} 27. axb4 {[%clk 0:00:40.4]} 27... b6 {[%clk 0:00:30.9]}
28. Ra2 {[%clk 0:00:27.2]} 28... Rc7 {[%clk 0:00:21.6]} 29. Ra6 {[%clk
0:00:23.5]} 29... Qc6 {[%clk 0:00:08.4]} 30. Nf5 {[%clk 0:00:20.6]} 30... Kh7
{[%clk 0:00:05.6]} 31. Qd2 {[%clk 0:00:14.7]} 31... Re8 {[%clk 0:00:05.1]} 32.
Rc1 {[%clk 0:00:13.4]} 32... Nxd3 {[%clk 0:00:04.3]} 33. Qxd3 {[%clk 0:00:12.3]}
33... Qxe4+ {[%clk 0:00:04.7]} 34. Qxe4 {[%clk 0:00:12.8]} 34... Rxe4 {[%clk
0:00:06.6]} 35. c6 {[%clk 0:00:06.4]} 35... b5 {[%clk 0:00:06.5]} 36. Nd6 {[%clk
0:00:06.7]} 36... Re6 {[%clk 0:00:06.4]} 37. Nxb5 {[%clk 0:00:07.8]} 37... Bb8
{[%clk 0:00:03.4]} 38. Nxc7 {[%clk 0:00:08.3]} 38... Bxc7 {[%clk 0:00:05.3]} 39.
b5 {[%clk 0:00:09.3]} 39... d3 {[%clk 0:00:06.2]} 40. b6 {[%clk 0:00:09.9]}
40... d2 {[%clk 0:00:07.3]} 41. Rd1 {[%clk 0:00:10.4]} 41... Rxc6 {[%clk
0:00:08.9]} 42. bxc7 {[%clk 0:00:11.5]} 42... Rxa6 {[%clk 0:00:10]} 43. c8=Q
{[%clk 0:00:12.5]} 1-0

[Event "*** Titled Tuesday Blitz"]
[Site "Chess.com"]
[Date "2019.05.07"]
[Round "10"]
[White "Jbd735"]
[Black "fidezivkovic"]
[Result "0-1"]
[WhiteElo "2429"]
[BlackElo "2296"]
[TimeControl "180+2"]
[EndTime "15:25:17 PDT"]
[Termination "fidezivkovic won by resignation"]

1. e4 {[%clk 0:03:01.9]} 1... c5 {[%clk 0:02:59.8]} 2. Nf3 {[%clk 0:03:02.8]}
2... g6 {[%clk 0:02:59.8]} 3. d4 {[%clk 0:03:02.6]} 3... cxd4 {[%clk 0:03:00.1]}
4. Nxd4 {[%clk 0:03:04.5]} 4... Nc6 {[%clk 0:03:00.1]} 5. c4 {[%clk 0:03:04.6]}
5... Nf6 {[%clk 0:02:59.2]} 6. Nc3 {[%clk 0:03:04.6]} 6... d6 {[%clk 0:02:58.4]}
7. Be2 {[%clk 0:03:02.9]} 7... Nxd4 {[%clk 0:02:58.2]} 8. Qxd4 {[%clk
0:03:02.8]} 8... Bg7 {[%clk 0:02:59.4]} 9. Qd1 {[%clk 0:03:03.3]} 9... O-O
{[%clk 0:02:58.1]} 10. O-O {[%clk 0:03:04.1]} 10... a5 {[%clk 0:02:58.2]} 11.
Be3 {[%clk 0:02:58.9]} 11... a4 {[%clk 0:02:55.3]} 12. Rc1 {[%clk 0:02:55.6]}
12... Qa5 {[%clk 0:02:53.4]} 13. f3 {[%clk 0:02:50.4]} 13... Be6 {[%clk
0:02:51.4]} 14. Nd5 {[%clk 0:02:44.1]} 14... Nxd5 {[%clk 0:02:46.5]} 15. cxd5
{[%clk 0:02:33.9]} 15... Bd7 {[%clk 0:02:46.4]} 16. Bd4 {[%clk 0:02:34.5]} 16...
Rfc8 {[%clk 0:02:35.6]} 17. Bxg7 {[%clk 0:02:02.5]} 17... Kxg7 {[%clk
0:02:35.6]} 18. Qd4+ {[%clk 0:02:02.1]} 18... Kg8 {[%clk 0:02:34.6]} 19. h4
{[%clk 0:01:56.6]} 19... Rxc1 {[%clk 0:02:21.6]} 20. Rxc1 {[%clk 0:01:55.1]}
20... a3 {[%clk 0:02:18.9]} 21. b4 {[%clk 0:01:39.4]} 21... Qa4 {[%clk
0:02:01.4]} 22. h5 {[%clk 0:01:36.6]} 22... gxh5 {[%clk 0:01:57.3]} 23. f4
{[%clk 0:01:28.4]} 23... Rc8 {[%clk 0:01:50.6]} 24. Rxc8+ {[%clk 0:00:57.4]}
24... Bxc8 {[%clk 0:01:50.5]} 25. Bd1 {[%clk 0:00:37.7]} 25... Qd7 {[%clk
0:01:26.3]} 26. Bxh5 {[%clk 0:00:36.9]} 26... Qc7 {[%clk 0:01:26.3]} 27. Qe3
{[%clk 0:00:30.9]} 27... Qc2 {[%clk 0:01:21.7]} 28. Qxa3 {[%clk 0:00:10.4]}
28... Qxe4 {[%clk 0:01:21.3]} 29. Qc3 {[%clk 0:00:08.8]} 29... Bf5 {[%clk
0:01:12]} 30. Bf3 {[%clk 0:00:04.4]} 30... Qb1+ {[%clk 0:01:10.1]} 31. Kh2
{[%clk 0:00:04.4]} 31... Qxa2 {[%clk 0:01:09.1]} 32. Kg3 {[%clk 0:00:04.6]}
32... Qb1 {[%clk 0:00:56.1]} 33. Qc7 {[%clk 0:00:03.1]} 33... Qe1+ {[%clk
0:00:54.2]} 34. Kh2 {[%clk 0:00:03.7]} 34... Qxb4 {[%clk 0:00:52.1]} 35. Qxe7
{[%clk 0:00:04.1]} 35... Qxf4+ {[%clk 0:00:51.8]} 36. Kg1 {[%clk 0:00:05.3]}
36... b5 {[%clk 0:00:51.6]} 37. Qd8+ {[%clk 0:00:04.3]} 37... Kg7 {[%clk
0:00:51.5]} 38. Qb6 {[%clk 0:00:05]} 38... b4 {[%clk 0:00:50]} 39. Qb8 {[%clk
0:00:04.3]} 39... Qd4+ {[%clk 0:00:47.9]} 40. Kh1 {[%clk 0:00:04]} 40... Qf4
{[%clk 0:00:46]} 41. Qb7 {[%clk 0:00:03.8]} 41... Bc2 {[%clk 0:00:41.2]} 42. Qc8
{[%clk 0:00:04]} 42... b3 {[%clk 0:00:39.4]} 43. Qc3+ {[%clk 0:00:04]} 43... Qe5
{[%clk 0:00:38.3]} 44. Qd2 {[%clk 0:00:04.5]} 44... Bg6 {[%clk 0:00:35.5]} 45.
Bd1 {[%clk 0:00:03.9]} 45... b2 {[%clk 0:00:35.5]} 46. Bc2 {[%clk 0:00:04.3]}
46... Bxc2 {[%clk 0:00:35.5]} 47. Qxc2 {[%clk 0:00:05.6]} 47... Qe1+ {[%clk
0:00:35.5]} 0-1

[Event "*** Titled Tuesday Blitz"]
[Site "Chess.com"]
[Date "2019.05.07"]
[Round "10"]
[White "jacky72"]
[Black "Oleg_Papayan"]
[Result "0-1"]
[WhiteElo "2624"]
[BlackElo "2555"]
[TimeControl "180+2"]
[EndTime "15:25:24 PDT"]
[Termination "Oleg_Papayan won by resignation"]

1. d4 {[%clk 0:03:01.9]} 1... Nf6 {[%clk 0:02:57.8]} 2. c4 {[%clk 0:03:02.8]}
2... e6 {[%clk 0:02:58.8]} 3. Nf3 {[%clk 0:03:04.3]} 3... Bb4+ {[%clk
0:02:59.4]} 4. Bd2 {[%clk 0:03:04.8]} 4... a5 {[%clk 0:03:00.4]} 5. e3 {[%clk
0:02:58]} 5... O-O {[%clk 0:03:00.3]} 6. Nc3 {[%clk 0:02:59.4]} 6... b6 {[%clk
0:02:56.1]} 7. Bd3 {[%clk 0:03:00.3]} 7... Bb7 {[%clk 0:02:56.1]} 8. O-O {[%clk
0:03:01.8]} 8... Bxc3 {[%clk 0:02:55.5]} 9. Bxc3 {[%clk 0:03:02.8]} 9... Ne4
{[%clk 0:02:56.3]} 10. Be1 {[%clk 0:03:04.3]} 10... d6 {[%clk 0:02:55.2]} 11.
Nd2 {[%clk 0:03:03.7]} 11... Nxd2 {[%clk 0:02:53]} 12. Bxd2 {[%clk 0:03:04.3]}
12... Nd7 {[%clk 0:02:52.7]} 13. b3 {[%clk 0:03:01.5]} 13... Nf6 {[%clk
0:02:50.6]} 14. f3 {[%clk 0:03:01.5]} 14... e5 {[%clk 0:02:51]} 15. d5 {[%clk
0:03:02.2]} 15... Qe7 {[%clk 0:02:44.5]} 16. a3 {[%clk 0:03:02.9]} 16... e4
{[%clk 0:02:43]} 17. Be2 {[%clk 0:03:02.4]} 17... exf3 {[%clk 0:02:42.8]} 18.
gxf3 {[%clk 0:03:04.3]} 18... Bc8 {[%clk 0:02:41.1]} 19. Kh1 {[%clk 0:03:03.7]}
19... Bf5 {[%clk 0:02:26]} 20. Qe1 {[%clk 0:03:00.3]} 20... Bg6 {[%clk
0:02:18.3]} 21. Qh4 {[%clk 0:02:52.1]} 21... Nxd5 {[%clk 0:02:16]} 22. Qxe7
{[%clk 0:02:42.8]} 22... Nxe7 {[%clk 0:02:16.6]} 23. Bc3 {[%clk 0:02:41.3]}
23... Rfe8 {[%clk 0:02:10.4]} 24. e4 {[%clk 0:02:42]} 24... f5 {[%clk 0:02:09]}
25. exf5 {[%clk 0:02:34.4]} 25... Nxf5 {[%clk 0:02:09.6]} 26. Bd3 {[%clk
0:02:33.7]} 26... Re3 {[%clk 0:02:09.2]} 27. Rad1 {[%clk 0:02:28.4]} 27... Rae8
{[%clk 0:01:56.5]} 28. b4 {[%clk 0:02:29.4]} 28... axb4 {[%clk 0:01:56.2]} 29.
axb4 {[%clk 0:02:31.3]} 29... Ng3+ {[%clk 0:01:47]} 30. hxg3 {[%clk 0:02:32]}
30... Bxd3 {[%clk 0:01:48.5]} 31. Rfe1 {[%clk 0:02:20.9]} 31... Be2 {[%clk
0:01:47.4]} 32. Rc1 {[%clk 0:02:18.8]} 32... Rxc3 {[%clk 0:01:28]} 33. Rxc3
{[%clk 0:02:16.4]} 33... Bxf3+ {[%clk 0:01:29.1]} 34. Rxf3 {[%clk 0:02:17.2]}
34... Rxe1+ {[%clk 0:01:30.9]} 35. Kg2 {[%clk 0:02:19.1]} 35... Rb1 {[%clk
0:01:19.7]} 36. b5 {[%clk 0:02:19.4]} 36... Rb4 {[%clk 0:01:13.7]} 37. Rf4
{[%clk 0:02:16.7]} 37... d5 {[%clk 0:01:12.8]} 38. Rd4 {[%clk 0:02:15.1]} 38...
dxc4 {[%clk 0:00:54.6]} 39. Rd8+ {[%clk 0:02:17]} 39... Kf7 {[%clk 0:00:55.4]}
40. Rd7+ {[%clk 0:02:18.9]} 40... Kf6 {[%clk 0:00:55.7]} 41. Rxc7 {[%clk
0:02:19.8]} 41... Rxb5 {[%clk 0:00:53.8]} 42. Rxc4 {[%clk 0:02:21]} 42... Rc5
{[%clk 0:00:53.4]} 43. Rd4 {[%clk 0:02:15.2]} 43... Rc6 {[%clk 0:00:52.4]} 44.
Kf3 {[%clk 0:02:15]} 44... Ke6 {[%clk 0:00:48.3]} 45. Rg4 {[%clk 0:02:09.7]}
45... Rc7 {[%clk 0:00:45.3]} 46. Rh4 {[%clk 0:01:58]} 46... h6 {[%clk
0:00:41.4]} 47. Rb4 {[%clk 0:01:59.4]} 47... Rb7 {[%clk 0:00:41.6]} 48. Ke4
{[%clk 0:02:00.9]} 48... b5 {[%clk 0:00:42.6]} 49. Kd4 {[%clk 0:02:02.1]} 49...
Kd6 {[%clk 0:00:44.1]} 50. Kc3 {[%clk 0:02:01.5]} 50... Kc5 {[%clk 0:00:44.2]}
51. Rg4 {[%clk 0:02:02.7]} 51... Rf7 {[%clk 0:00:40.5]} 52. Rg6 {[%clk
0:02:02.1]} 52... Rb7 {[%clk 0:00:31.3]} 53. g4 {[%clk 0:02:00.3]} 53... Kd5
{[%clk 0:00:32.4]} 54. Kb4 {[%clk 0:01:52.8]} 54... Ke4 {[%clk 0:00:31.6]} 55.
Re6+ {[%clk 0:01:42.4]} 55... Kf4 {[%clk 0:00:30.4]} 56. Rg6 {[%clk 0:01:43.8]}
56... Kg3 {[%clk 0:00:29.6]} 57. Kc5 {[%clk 0:01:44.5]} 57... b4 {[%clk
0:00:30.5]} 58. Kc6 {[%clk 0:01:45.8]} 58... Rf7 {[%clk 0:00:24.3]} 59. Kc5
{[%clk 0:01:42.7]} 59... b3 {[%clk 0:00:24.4]} 60. Rb6 {[%clk 0:01:43.9]} 60...
Kxg4 {[%clk 0:00:20.9]} 61. Rxb3 {[%clk 0:01:43.8]} 61... Rd7 {[%clk 0:00:21.6]}
62. Kc6 {[%clk 0:01:44.6]} 62... Rd1 {[%clk 0:00:21.9]} 63. Rb2 {[%clk
0:01:45.5]} 63... g5 {[%clk 0:00:22.8]} 64. Rg2+ {[%clk 0:01:46.4]} 64... Kf5
{[%clk 0:00:23.8]} 65. Rh2 {[%clk 0:01:47.2]} 65... Kg6 {[%clk 0:00:25]} 66. Rh3
{[%clk 0:01:48.7]} 66... g4 {[%clk 0:00:25.6]} 67. Ra3 {[%clk 0:01:49]} 67...
Kg5 {[%clk 0:00:26.2]} 68. Ra8 {[%clk 0:01:50.4]} 68... h5 {[%clk 0:00:27]} 69.
Rg8+ {[%clk 0:01:50.5]} 69... Kh4 {[%clk 0:00:28]} 70. Rd8 {[%clk 0:01:52.4]}
70... Rxd8 {[%clk 0:00:25.1]} 71. Kc7 {[%clk 0:01:53.7]} 71... Rd1 {[%clk
0:00:24.7]} 0-1

[Event "*** Titled Tuesday Blitz"]
[Site "Chess.com"]
[Date "2019.05.07"]
[Round "10"]
[White "bugsbunny444"]
[Black "Blitzstream"]
[Result "1-0"]
[WhiteElo "2569"]
[BlackElo "2572"]
[TimeControl "180+2"]
[EndTime "15:25:28 PDT"]
[Termination "bugsbunny444 won by resignation"]

1. Nf3 {[%clk 0:03:01.9]} 1... Nf6 {[%clk 0:02:59.9]} 2. c4 {[%clk 0:03:02.7]}
2... e6 {[%clk 0:02:57.9]} 3. g3 {[%clk 0:03:03.1]} 3... b6 {[%clk 0:02:53.3]}
4. Bg2 {[%clk 0:03:03.7]} 4... Bb7 {[%clk 0:02:54.7]} 5. O-O {[%clk 0:03:04.6]}
5... g5 {[%clk 0:02:55.7]} 6. Nxg5 {[%clk 0:03:01.9]} 6... Bxg2 {[%clk
0:02:57.6]} 7. Kxg2 {[%clk 0:03:03.2]} 7... Nc6 {[%clk 0:02:57.7]} 8. d4 {[%clk
0:03:02.3]} 8... d5 {[%clk 0:02:53.8]} 9. Qa4 {[%clk 0:02:38.5]} 9... Qd7 {[%clk
0:02:53.4]} 10. Rd1 {[%clk 0:02:24.9]} 10... O-O-O {[%clk 0:02:52.8]} 11. Nxf7
{[%clk 0:02:07.1]} 11... Qxf7 {[%clk 0:02:48.4]} 12. Qxc6 {[%clk 0:02:07.5]}
12... Ne4 {[%clk 0:02:22.3]} 13. f3 {[%clk 0:01:54.8]} 13... Nd6 {[%clk
0:02:20.9]} 14. cxd5 {[%clk 0:01:50.9]} 14... exd5 {[%clk 0:02:21.6]} 15. Nc3
{[%clk 0:01:50.8]} 15... Kb8 {[%clk 0:02:05.9]} 16. Bf4 {[%clk 0:01:42.1]} 16...
h5 {[%clk 0:01:58.9]} 17. Nxd5 {[%clk 0:01:38.5]} 17... h4 {[%clk 0:01:54.6]}
18. Rac1 {[%clk 0:01:33.8]} 18... hxg3 {[%clk 0:01:43.9]} 19. Bxg3 {[%clk
0:01:15.9]} 19... Rh7 {[%clk 0:01:21.4]} 20. Nb4 {[%clk 0:00:51.3]} 20... a5
{[%clk 0:00:52.2]} 21. Na6+ {[%clk 0:00:51.5]} 21... Ka7 {[%clk 0:00:52.5]} 22.
Nxc7 {[%clk 0:00:52.1]} 22... Qf5 {[%clk 0:00:33.7]} 23. Nd5 {[%clk 0:00:20.4]}
23... Qh3+ {[%clk 0:00:31.1]} 24. Kg1 {[%clk 0:00:21.4]} 24... Nc8 {[%clk
0:00:25]} 25. Nf4 {[%clk 0:00:11.2]} 25... Qf5 {[%clk 0:00:22.7]} 26. Qe6 {[%clk
0:00:10.7]} 26... Nd6 {[%clk 0:00:10.6]} 27. Qxf5 {[%clk 0:00:07.8]} 27... Nxf5
{[%clk 0:00:12.5]} 28. Ne6 {[%clk 0:00:08]} 28... Re8 {[%clk 0:00:10.6]} 29.
Nxf8 {[%clk 0:00:06.8]} 29... Rxf8 {[%clk 0:00:12.5]} 30. Rc7+ {[%clk
0:00:07.8]} 30... Rxc7 {[%clk 0:00:12.7]} 31. Bxc7 {[%clk 0:00:09.7]} 31... Rg8+
{[%clk 0:00:11.3]} 32. Kf2 {[%clk 0:00:09]} 32... Kb7 {[%clk 0:00:11.2]} 33. Bg3
{[%clk 0:00:09.6]} 33... Rc8 {[%clk 0:00:12.1]} 34. Rd2 {[%clk 0:00:10]} 34...
Rc1 {[%clk 0:00:12.8]} 35. e4 {[%clk 0:00:10.6]} 35... Ng7 {[%clk 0:00:14]} 36.
d5 {[%clk 0:00:11.6]} 36... Kc8 {[%clk 0:00:15]} 37. Be5 {[%clk 0:00:08.6]}
37... Ne8 {[%clk 0:00:15.5]} 38. Kg3 {[%clk 0:00:05.2]} 38... Kd7 {[%clk
0:00:16.5]} 39. h4 {[%clk 0:00:06]} 39... Rg1+ {[%clk 0:00:17.2]} 40. Rg2 {[%clk
0:00:06.5]} 40... Rh1 {[%clk 0:00:18.1]} 41. Kg4 {[%clk 0:00:05.4]} 41... b5
{[%clk 0:00:19.1]} 42. h5 {[%clk 0:00:06.2]} 42... Ke7 {[%clk 0:00:19.6]} 43.
Rh2 {[%clk 0:00:07]} 43... Rg1+ {[%clk 0:00:20.4]} 44. Kf5 {[%clk 0:00:06.3]}
44... Rg8 {[%clk 0:00:20.5]} 45. h6 {[%clk 0:00:07]} 45... Rf8+ {[%clk
0:00:22.4]} 46. Kg4 {[%clk 0:00:07]} 46... b4 {[%clk 0:00:22]} 47. h7 {[%clk
0:00:07.5]} 47... a4 {[%clk 0:00:23.2]} 48. h8=Q {[%clk 0:00:08.5]} 48... Rf7
{[%clk 0:00:25.1]} 49. Rh7 {[%clk 0:00:08.3]} 49... Kd8 {[%clk 0:00:25.2]} 50.
Rxf7 {[%clk 0:00:08.7]} 50... a3 {[%clk 0:00:27.1]} 51. Bf6+ {[%clk 0:00:08.9]}
1-0